fUST/lending_fUST_20260211
["ID","MTS","AMOUNT","RATE_DAILY","PERIOD"]
[405097595,1770801040590,-500.0,0.00038356,120]
[405097596,1770801040600,-500.0,0.00038356,8]
[405097597,1770801040609,-249.89929754,0.00038356,120]
[405097598,1770801040618,-500.0,0.00038356,120]
[405097599,1770801040627,-500.0,0.00038356,120]
[405097600,1770801040637,-500.0,0.00038356,120]
[405097601,1770801040647,-181.03349056,0.00038356,120]
[405097602,1770801040656,-3799.99,0.00038356,21]
[405097603,1770801040666,-500.0,0.00038356,120]
[405097604,1770801040675,-1624.31,0.00038356,120]
[405097605,1770801040686,-500.0,0.00038356,120]
[405097606,1770801040696,-1000.0,0.00038356,2]
[405097607,1770801040707,-500.0,0.00038356,120]
[405097608,1770801040716,-500.0,0.00038356,120]
[405097609,1770801040725,-500.0,0.00038356,120]
[405097610,1770801040735,-4544.78,0.00038356,2]
[405097611,1770801040744,-466.68082506,0.00038356,120]
[405097612,1770801040754,-500.0,0.00038356,120]
[405097613,1770801040763,-55884.82,0.00038356,20]
[405097614,1770801040773,-638.84,0.00038356,30]
[405097615,1770801040782,-500.0,0.00038356,120]
[405097616,1770801040792,-2795.94,0.00038356,2]
[405097617,1770801040801,-500.0,0.00038356,120]
[405097618,1770801040811,-698.77,0.00038356,120]
[405097619,1770801040820,-500.0,0.00038356,120]
[405097620,1770801040829,-410.0,0.0003839,11]
[405097621,1770801040838,-205.411,0.00038495,2]
[405097622,1770801040848,-6883.37820439,0.00038515,2]
[405097623,1770801040857,-7203.46,0.000386,14]
[405097624,1770801040866,-707.64591476,0.000386,3]
[405097625,1770801040875,-12528.27456827,0.0003861,2]
[405097636,1770801045243,-2000.0,0.00037534,2]
[405097637,1770801045253,-448.96220251,0.0003861,2]
[405097638,1770801045481,-446.84236653,0.0003861,2]
[405097686,1770801046199,-276.87745749,0.0003861,2]
[405097688,1770801046211,-258.20308388,0.0003861,2]
[405097692,1770801046360,-13139.5954771,0.0003861,2]
[405097693,1770801048622,150.0,0.0002589,2]
[405097694,1770801056915,1229.64228132,0.00025583,2]
[405097703,1770801809029,2000.0,0.00028289,120]
[405097704,1770801809300,230.206,0.00028289,120]
[405097705,1770801811416,475.0,0.00028289,120]
[405097706,1770801811737,475.0,0.00028289,120]
[405097707,1770801811996,475.0,0.00028289,120]
[405097708,1770801812258,475.0,0.00028289,120]
[405097709,1770801812545,475.0,0.00028289,120]
[405097710,1770801812831,435.972,0.00028289,120]
[405097711,1770801830846,271.0,0.0003,120]
[405097714,1770802035133,-150.0,0.00025252,2]
[405097715,1770802035156,-1229.4516725,0.00025583,2]
[405097716,1770802035179,-1125.46370057,0.00026955,2]
[405097717,1770802041359,-1322.58345044,0.00026955,2]
[405097718,1770802041380,-77.45388659,0.000272,2]
[405097719,1770802044100,-87.83601495,0.000272,2]
[405097720,1770802044123,-77.57325314,0.00027252,2]
[405097721,1770802052084,-99.42674686,0.00027252,2]
[405097722,1770802052105,-921.0,0.00028197,2]
[405097723,1770802052125,-300.0,0.00028718,2]
[405097724,1770802052146,-204.0,0.00029252,2]
[405097725,1770802052166,-364.41094622,0.00029274,2]
[405097726,1770802052188,-223.88197211,0.00030482,2]
[405097729,1770802148087,-215.85310535,0.00024953,2]
[405097730,1770802148106,-805.37632526,0.00025,15]
[405097731,1770802148127,-1221.80784975,0.00025327,2]
[405097732,1770802171088,-308.04477163,0.0002824,2]
[405097733,1770802171109,-300.0,0.00028473,2]
[405097734,1770802171128,-2046.8027322,0.0003,2]
[405097735,1770802212623,373.3074389,0.00025583,2]
[405097736,1770802212646,838.64531989,0.00025583,2]
[405097748,1770802232297,-327.0,0.00026958,2]
[405097751,1770802232352,-2083.79367334,0.00026958,2]
[405097752,1770802232362,-3248.29515796,0.00028724,2]
[405097783,1770802238452,-361.33942992,0.00028724,2]
[405097784,1770802238462,-300.0,0.00029999,2]
[405097785,1770802238471,-500.0,0.00029999,2]
[405097786,1770802238481,-500.0,0.00029999,2]
[405097787,1770802238490,-276.11802789,0.00029999,2]
[405097788,1770802238500,-500.0,0.00029999,2]
[405097789,1770802238510,-507.01101328,0.00029999,2]
[405097790,1770802238519,-3891.85171652,0.0003,2]
[405097791,1770802238529,-17481.02968867,0.0003,2]
[405097792,1770802238657,-572.92829634,0.0003,2]
[405097796,1770802240615,-940.23612189,0.0003,2]
[405097799,1770802245515,-10969.87168926,0.0003,2]
[405097800,1770802245527,-160.0,0.0003,2]
[405097801,1770802245539,-230.14884502,0.00030237,2]
[405097802,1770802245553,-7744.65446321,0.00030238,2]
[405097820,1770802246471,-295.96102886,0.00030238,2]
[405097821,1770802246616,-278.32393034,0.00030238,2]
[405097822,1770802334826,150.0,0.0002589,2]
[405097823,1770802357886,-1188.46440341,0.00027602,2]
[405097824,1770802357915,-2360.78925948,0.00027602,2]
[405097825,1770802357942,-177.0,0.0002789,2]
[405097826,1770802358044,-1197.35638656,0.00028736,2]
[405097827,1770802396708,10000.0,0.000237,2]
[405097828,1770802403519,10000.0,0.000237,2]
[405097829,1770802409386,10000.0,0.000237,2]
[405097830,1770802416391,10000.0,0.000237,2]
[405097833,1770802679612,172.52,0.00013487,2]
[405097835,1770802864279,297.14427897,0.00013699,2]
[405097836,1770803242124,-986.00880239,0.0002416,2]
[405097837,1770803243089,-475.15627338,0.0002416,2]
[405097838,1770803243118,-73.68837452,0.0002477,2]
[405097839,1770803349101,-1059.28884256,0.0002477,2]
[405097840,1770803349123,-150.0,0.00024773,2]
[405097841,1770803349145,-205.35,0.000249,2]
[405097842,1770803349169,-1220.70136224,0.00026271,2]
[405097843,1770803365098,-1021.96109849,0.00026271,2]
[405097844,1770803365119,-177.0,0.00026773,2]
[405097845,1770803365141,-300.0,0.00027703,2]
[405097846,1770803365163,-1242.97885548,0.00027704,2]
[405097847,1770803365193,-1711.54753062,0.00027704,2]
[405097848,1770803365215,-872.29644727,0.00028135,2]
[405097849,1770803372131,-2480.05125711,0.00028135,2]
[405097850,1770803372150,-293.21566209,0.00028391,2]
[405097872,1770803432454,-674.31024791,0.00028391,2]
[405097874,1770803432464,-780.68494,0.00028474,2]
[405097876,1770803432473,-204.0,0.00028773,2]
[405097880,1770803432483,-13.95482624,0.00028773,2]
[405097884,1770803432494,-1506.9704803,0.00028773,2]
[405097887,1770803432504,-162.8795197,0.00029518,2]
[405097889,1770803432515,-23.04454141,0.00029518,2]
[405097892,1770803432526,-241.0,0.00029997,2]
[405097894,1770803432536,-500.0,0.00029998,2]
[405097896,1770803432545,-500.0,0.00029998,2]
[405097898,1770803432554,-94.02667859,0.00029998,2]
[405097900,1770803432565,-333.95,0.00029998,2]
[405097915,1770803445524,-72.02332141,0.00029998,2]
[405097916,1770803445534,-500.0,0.00029998,2]
[405097917,1770803445543,-500.0,0.00029998,2]
[405097918,1770803445552,-330.02078789,0.00029998,2]
[405097919,1770803445562,-500.0,0.00029998,2]
[405097920,1770803445572,-500.0,0.00029998,2]
[405097921,1770803445581,-500.0,0.00029998,2]
[405097922,1770803445591,-573.32959919,0.00029998,2]
[405097923,1770803445600,-209.02806513,0.00029998,2]
[405097924,1770803445609,-500.0,0.00029998,2]
[405097925,1770803445618,-500.0,0.00029998,2]
[405097926,1770803445628,-500.0,0.00029998,2]
[405097927,1770803445638,-377.82351792,0.00029998,2]
[405097928,1770803445649,-122.17648208,0.00029998,2]
[405097929,1770803445658,-500.0,0.00029998,2]
[405097930,1770803445669,-500.0,0.00029998,2]
[405097931,1770803445678,-500.0,0.00029998,2]
[405097932,1770803445688,-497.01490738,0.00029998,2]
[405097933,1770803445697,-500.0,0.00029998,2]
[405097934,1770803445707,-500.0,0.00029998,2]
[405097935,1770803445716,-499.99999999,0.00029998,2]
[405097936,1770803445726,-4462.03294804,0.0003,2]
[405097937,1770803445736,-500.0,0.00030482,2]
[405097938,1770803445746,-600.0,0.00030598,30]
[405097939,1770803445756,-364.831013,0.0003072,2]
[405097940,1770803445765,-231.0,0.00030773,2]
[405097941,1770803445774,-200.0,0.000314,120]
[405097942,1770803445784,-189.1616774,0.00031451,2]
[405097943,1770803445793,-5571.71819169,0.00031864,2]
[405097944,1770803445803,-400.0,0.00032,120]
[405097945,1770803445813,-334.66331,0.00032629,2]
[405097946,1770803445822,-258.0,0.00032773,2]
[405097947,1770803445832,-500.0,0.00032876,2]
[405097948,1770803445842,-164.0,0.00033,14]
[405097949,1770803445851,-402.57,0.0003308,2]
[405097950,1770803445861,-500.0,0.00033179,2]
[405097951,1770803445870,-1152.83147082,0.0003318,2]
[405097954,1770803446522,-960.43218998,0.0003318,2]
[405097955,1770803446532,-281.15191406,0.00033354,7]
[405097956,1770803446541,-720.0,0.00033658,30]
[405097957,1770803446550,-6681.40343535,0.00033729,2]
[405097958,1770803446559,-500.0,0.00033769,2]
[405097959,1770803446568,-342.8261123,0.00033778,2]
[405097960,1770803446578,-3000.0,0.000338,2]
[405097961,1770803446586,-300.0,0.00034,120]
[405097962,1770803446596,-217.0,0.0003405,120]
[405097963,1770803446606,-594.95699555,0.00034185,2]
[405097964,1770803446615,-168.0,0.0003432,2]
[405097965,1770803446625,-318.0,0.00034359,2]
[405097966,1770803446634,-165.0,0.00034521,30]
[405097967,1770803446643,-168.0,0.0003459,2]
[405097968,1770803446652,-168.0,0.00034729,2]
[405097969,1770803446662,-403.0,0.00034761,2]
[405097970,1770803446671,-285.0,0.00034773,120]
[405097971,1770803446680,-338.98303456,0.00035,2]
[405097972,1770803446689,-349.45995548,0.00035,2]
[405097973,1770803446699,-387.40918236,0.00035,2]
[405097974,1770803446708,-168.0,0.00035197,2]
[405097975,1770803446717,-500.0,0.000354,120]
[405097976,1770803446726,-742.38915205,0.00035426,2]
[405097977,1770803446735,-7657.03589002,0.00035594,2]
[405097978,1770803446745,-605.32684743,0.00035643,2]
[405097979,1770803446754,-168.0,0.00035736,2]
[405097980,1770803446763,-929.62030554,0.00035741,2]
[405097981,1770803446772,-549.5791557,0.00035805,2]
[405097982,1770803446782,-391.8012712,0.00035872,2]
[405097983,1770803446791,-168.0,0.00035876,2]
[405097984,1770803446800,-168.0,0.00035951,2]
[405097985,1770803446809,-168.0,0.00035986,2]
[405097986,1770803446818,-800.0,0.00036,120]
[405097987,1770803446828,-2164.0,0.00036051,2]
[405097988,1770803446836,-168.0,0.00036597,2]
[405097989,1770803446846,-168.0,0.0003666,2]
[405097990,1770803446855,-312.0,0.00036773,120]
[405097991,1770803446865,-2111.27487924,0.0003696,3]
[405097992,1770803446874,-500.0,0.00036965,30]
[405097993,1770803446884,-2111.27487924,0.0003698,3]
[405097994,1770803446894,-20009.44225003,0.0003699,3]
[405097995,1770803446903,-741.97989042,0.0003699,3]
[405097996,1770803446915,-200.0,0.00037,120]
[405097997,1770803446926,-864.0,0.00037024,30]
[405097998,1770803446935,-168.0,0.00037267,2]
[405097999,1770803446944,-500.0,0.00037299,2]
[405098000,1770803446954,-150.0,0.000373,15]
[405098001,1770803446964,-715.0,0.000374,11]
[405098002,1770803446983,-8230.50997776,0.00037458,2]
[405098003,1770803446992,-2000.0,0.00037534,2]
[405098004,1770803447001,-500.0,0.00037542,30]
[405098005,1770803447013,-1000.0,0.000376,15]
[405098006,1770803447022,-500.0,0.000376,30]
[405098007,1770803447032,-500.0,0.000376,30]
[405098008,1770803447040,-500.0,0.000376,30]
[405098009,1770803447049,-500.0,0.000376,30]
[405098010,1770803447058,-500.0,0.000376,30]
[405098011,1770803447068,-500.0,0.000376,30]
[405098012,1770803447077,-504.40674661,0.000376,30]
[405098013,1770803447086,-151.0,0.00037665,31]
[405098014,1770803447096,-782.0,0.000378,2]
[405098015,1770803447177,-991.88744259,0.0003799,2]
[405098016,1770803447210,-750.0,0.00038,120]
[405098017,1770803447220,-3020.63748687,0.000382,2]
[405098018,1770803447230,-596.0,0.00038299,30]
[405098019,1770803447239,-200.0,0.000383,3]
[405098020,1770803447249,-200.0,0.000383,5]
[405098021,1770803447258,-300.0,0.000383,30]
[405098022,1770803447267,-300.0,0.000383,2]
[405098023,1770803447277,-494.56238395,0.00038345,2]
[405098024,1770803447287,-6333.82463772,0.00038346,3]
[405098025,1770803447296,-500.0,0.00038356,120]
[405098026,1770803447306,-500.0,0.00038356,120]
[405098027,1770803447315,-500.0,0.00038356,8]
[405098028,1770803447325,-500.0,0.00038356,120]
[405098029,1770803447335,-1000.0,0.00038356,2]
[405098030,1770803447344,-500.0,0.00038356,120]
[405098031,1770803447354,-500.0,0.00038356,120]
[405098032,1770803447363,-500.0,0.00038356,120]
[405098033,1770803447373,-500.0,0.00038356,120]
[405098034,1770803447382,-500.0,0.00038356,120]
[405098035,1770803447392,-601.69012478,0.00038356,120]
[405098036,1770803447401,-500.0,0.00038356,120]
[405098037,1770803447411,-500.0,0.00038356,120]
[405098038,1770803447420,-500.0,0.00038356,120]
[405098039,1770803447430,-500.0,0.00038356,120]
[405098040,1770803447438,-887.05,0.00038356,120]
[405098041,1770803447447,-278.6,0.00038356,120]
[405098042,1770803447456,-500.0,0.00038356,120]
[405098043,1770803447465,-500.0,0.00038356,120]
[405098044,1770803447474,-151.0,0.00038356,120]
[405098045,1770803447483,-151.0,0.00038356,120]
[405098046,1770803447492,-479.98084426,0.00038356,120]
[405098047,1770803447501,-309.30783249,0.00038356,120]
[405098048,1770803447511,-670.2,0.00038356,120]
[405098049,1770803447520,-500.0,0.00038356,120]
[405098050,1770803447529,-500.0,0.00038356,120]
[405098051,1770803447539,-714.25,0.00038356,120]
[405098052,1770803447549,-770.64,0.00038356,120]
[405098053,1770803447558,-500.0,0.00038356,120]
[405098054,1770803447568,-304.49143312,0.00038356,120]
[405098055,1770803447577,-500.0,0.00038356,120]
[405098056,1770803447587,-500.0,0.00038356,120]
[405098057,1770803447596,-500.0,0.00038356,120]
[405098058,1770803447604,-1457.47,0.00038356,120]
[405098059,1770803447613,-400.04043899,0.00038356,120]
[405098060,1770803447622,-500.0,0.00038356,120]
[405098061,1770803447632,-535.57091195,0.00038356,120]
[405098062,1770803447641,-566.1369118,0.00038356,2]
[405098063,1770803447650,-753.07,0.00038356,120]
[405098064,1770803447659,-500.0,0.00038356,53]
[405098065,1770803447669,-697.69,0.00038356,120]
[405098066,1770803447679,-500.0,0.00038356,120]
[405098067,1770803447689,-500.0,0.00038356,120]
[405098068,1770803447698,-500.0,0.00038356,120]
[405098069,1770803447706,-500.0,0.00038356,5]
[405098070,1770803447716,-613.6,0.00038356,120]
[405098071,1770803447725,-500.0,0.00038356,120]
[405098072,1770803447735,-500.0,0.00038356,120]
[405098073,1770803447744,-500.0,0.00038356,120]
[405098074,1770803447754,-500.0,0.00038356,120]
[405098075,1770803447764,-2096.26,0.00038356,120]
[405098076,1770803447773,-500.0,0.00038356,120]
[405098077,1770803447783,-606.76,0.00038356,120]
[405098078,1770803447792,-500.0,0.00038356,120]
[405098079,1770803447801,-500.0,0.00038356,120]
[405098080,1770803447810,-500.0,0.00038356,120]
[405098081,1770803447819,-11877.09,0.00038356,120]
[405098082,1770803447828,-500.0,0.00038356,120]
[405098083,1770803447837,-9193.90177351,0.00038356,120]
[405098084,1770803447850,-886.60267338,0.00038356,120]
[405098085,1770803468025,153.28240594,0.00013699,2]
[405098086,1770803527416,945.21140717,0.00025583,2]
[405098093,1770803665256,150.0,0.00021918,2]
[405098094,1770803665311,200.30821917,0.00022466,2]
[405098101,1770804336103,-150.0,0.000253,2]
[405098102,1770804336126,-760.2192121,0.00025583,2]
[405098104,1770804389091,-42.66271864,0.00025583,2]
[405098105,1770804389119,-208.01,0.000256,2]
[405098106,1770804389148,-883.04142327,0.00026742,2]
[405098107,1770804389198,-498.69881618,0.00026742,2]
[405098108,1770804425114,-461.08,0.00027,2]
[405098109,1770804425136,-177.0,0.000273,2]
[405098110,1770804425156,-232.27,0.000275,2]
[405098111,1770804425176,-552.43968689,0.00028294,2]
[405098112,1770804448074,-1408.15886127,0.00028294,2]
[405098113,1770804448095,-204.0,0.000293,2]
[405098114,1770804448114,-300.0,0.00029844,2]
[405098115,1770804448136,-505.20625195,0.00029845,2]
[405098116,1770804471649,-899.5428,0.00029845,2]
[405098117,1770804563148,-1134.70780492,0.00029845,2]
[405098118,1770804563183,-231.0,0.000313,2]
[405098119,1770804563204,-249.78279594,0.00031381,5]
[405098120,1770804563233,-1439.94132517,0.00031396,2]
[405098121,1770804565077,-1678.3738404,0.00031396,2]
[405098122,1770804565099,-200.0,0.00032489,120]
[405098123,1770804565121,-400.0,0.00032946,2]
[405098124,1770804565140,-258.27203143,0.00032946,3]
[405098125,1770804579144,150.0,0.0002589,2]
[405098126,1770804581604,2491.47572767,0.000237,2]
[405098127,1770804581625,2525.33034763,0.000237,2]
[405098128,1770804581645,2664.99181549,0.000237,2]
[405098129,1770804581668,2118.20210921,0.000237,2]
[405098151,1770804631593,-177.0,0.0002789,2]
[405098153,1770804631603,-204.0,0.0002989,2]
[405098154,1770804631613,-500.0,0.00031381,2]
[405098156,1770804631622,-231.0,0.0003189,2]
[405098158,1770804631632,-141.72796857,0.00032946,3]
[405098160,1770804631642,-210.937462,0.00032946,3]
[405098163,1770804631651,-340.0,0.00032946,3]
[405098165,1770804631660,-200.0,0.00032946,2]
[405098168,1770804631669,-300.0,0.00032946,3]
[405098171,1770804631678,-228.0,0.00032946,3]
[405098174,1770804631688,-500.0,0.00032947,7]
[405098178,1770804631698,-500.0,0.00032947,7]
[405098181,1770804631707,-500.0,0.00032947,7]
[405098183,1770804631716,-500.0,0.00032947,7]
[405098185,1770804631726,-500.0,0.00032947,7]
[405098187,1770804631736,-500.0,0.00032947,7]
[405098189,1770804631745,-500.0,0.00032947,7]
[405098191,1770804631754,-500.0,0.00032947,7]
[405098193,1770804631764,-500.0,0.00032947,7]
[405098195,1770804631774,-500.0,0.00032947,7]
[405098197,1770804631783,-20.71116085,0.00032947,7]
[405098199,1770804631795,-479.28883915,0.00032947,7]
[405098201,1770804631805,-500.0,0.00032947,7]
[405098203,1770804631814,-287.81904833,0.00032947,7]
[405098205,1770804631823,-404.34211252,0.00032947,7]
[405098207,1770804631834,-95.65788748,0.00032947,7]
[405098209,1770804631844,-618.36346627,0.00032947,7]
[405098211,1770804631854,-226.04811641,0.00032947,7]
[405098225,1770804637692,-209.0,0.00032341,120]
[405098226,1770804637702,-273.95188359,0.00032947,7]
[405098227,1770804637711,-500.0,0.00032947,7]
[405098228,1770804637721,-500.0,0.00032947,7]
[405098229,1770804637730,-545.33509971,0.00032947,7]
[405098230,1770804637740,-500.0,0.00032947,7]
[405098231,1770804637750,-313.84041261,0.00032947,7]
[405098232,1770804637760,-500.0,0.00032947,7]
[405098233,1770804637769,-196.00325508,0.00032947,7]
[405098234,1770804637779,-500.0,0.00032947,7]
[405098235,1770804637788,-501.76292103,0.00032947,7]
[405098236,1770804637798,-455.08862534,0.00032947,2]
[405098237,1770804637807,-3697.17347428,0.00032948,2]
[405098238,1770804637816,-210.34609218,0.00033154,2]
[405098239,1770804637825,-151.35031647,0.00033154,2]
[405098240,1770804637835,-502.39032649,0.00033322,7]
[405098241,1770804637845,-217.886924,0.00033348,2]
[405098242,1770804637855,-257.4805824,0.00033635,2]
[405098243,1770804637864,-500.0,0.00033888,7]
[405098244,1770804637873,-258.0,0.0003389,120]
[405098245,1770804637882,-4276.03178299,0.00034499,2]
[405098246,1770804637891,-217.886924,0.00034752,2]
[405098247,1770804637900,-276.0101712,0.00035283,2]
[405098248,1770804637910,-742.38915205,0.00035436,2]
[405098249,1770804637920,-1041.66666667,0.00035438,2]
[405098250,1770804637929,-500.0,0.00035616,120]
[405098251,1770804637939,-422.0,0.00035624,2]
[405098252,1770804637948,-722.0,0.00035624,2]
[405098253,1770804637957,-285.0,0.0003589,120]
[405098254,1770804637967,-500.0,0.00035957,2]
[405098255,1770804637977,-211.3349548,0.00035989,7]
[405098256,1770804637985,-167.61219001,0.00035989,15]
[405098257,1770804637995,-500.0,0.00035989,15]
[405098258,1770804638004,-4479.8586165,0.0003599,2]
[405098277,1770804644219,-3188.90234668,0.0003599,2]
[405098278,1770804644229,-4806.57879572,0.0003605,2]
[405098279,1770804644239,-217.886924,0.00036156,2]
[405098280,1770804644249,-1583.45615943,0.0003661,3]
[405098281,1770804644259,-20725.92512495,0.0003662,10]
[405098282,1770804645061,-455.08862534,0.0003662,10]
[405098288,1770804645915,-5184.28428614,0.0003662,10]
[405098294,1770804646048,-56.59728407,0.0003662,10]
[405098310,1770805203940,150.0,0.00016438,2]
[405098311,1770805203982,250.0,0.00016986,2]
[405098312,1770805204038,350.0,0.00017534,2]
[405098313,1770805204094,450.0,0.00018082,2]
[405098314,1770805204152,500.25483341,0.0001863,2]
[405098322,1770805285910,500.0,0.00030137,120]
[405098323,1770805310228,300.0,0.00030137,120]
[405098324,1770805321518,500.0,0.00030137,120]
[405098325,1770805357359,242.0,0.0003,120]
[405098330,1770805629122,-190.79586981,0.00024184,2]
[405098331,1770805653120,-138.19831274,0.00024184,2]
[405098332,1770805653140,-176.16700705,0.00024211,2]
[405098333,1770805653161,-150.0,0.00024284,2]
[405098334,1770805653182,-3397.95760054,0.00024456,2]
[405098335,1770805708091,-809.62267868,0.00023969,2]
[405098336,1770805710941,-160.00577039,0.00023969,2]
[405098337,1770805712860,-249.35732485,0.00023969,2]
[405098338,1770805717126,-430.99262353,0.00023969,2]
[405098339,1770805718908,-549.51467285,0.00023969,2]
[405098340,1770805745079,-148.34885383,0.00023969,2]
[405098341,1770805745101,-2230.65557106,0.00024211,2]
[405098342,1770805745122,-825.41530272,0.00025074,2]
[405098343,1770805745143,-161.0,0.00026,5]
[405098344,1770805745163,-177.0,0.00026284,2]
[405098345,1770805745187,-1587.89319311,0.00026606,2]
[405098346,1770805745207,-300.0,0.00026847,2]
[405098348,1770805758682,1440.44984041,0.00024953,2]
[405098349,1770805758703,759.04322989,0.00024953,2]
[405098350,1770805772090,-204.0,0.00028284,2]
[405098351,1770805772110,-300.0,0.00028509,2]
[405098352,1770805772131,-201.53782362,0.0002851,2]
[405098353,1770805772152,-500.0,0.0002851,2]
[405098354,1770805772172,-500.0,0.0002851,2]
[405098355,1770805772192,-500.0,0.0002851,2]
[405098356,1770805772212,-387.75273763,0.0002851,2]
[405098375,1770805831718,-300.0,0.00028509,2]
[405098377,1770805831728,-202.0,0.00028509,2]
[405098379,1770805831737,-177.905145,0.00028509,2]
[405098381,1770805831749,-971.75,0.00028509,2]
[405098384,1770805831760,-50.344855,0.00028509,2]
[405098386,1770805831769,-111.64193592,0.0002851,2]
[405098387,1770805831780,-500.0,0.0002851,2]
[405098389,1770805831789,-307.79346763,0.0002851,2]
[405098391,1770805831799,-632.8388317,0.0002851,2]
[405098393,1770805831809,-501.41960638,0.0002851,2]
[405098395,1770805831823,-500.0,0.0002851,2]
[405098397,1770805831833,-500.0,0.0002851,2]
[405098399,1770805831842,-500.0,0.0002851,2]
[405098401,1770805831852,-328.70240689,0.0002851,2]
[405098403,1770805831863,-394.76651663,0.0002851,2]
[405098405,1770805831873,-500.0,0.0002851,2]
[405098407,1770805831882,-500.0,0.0002851,2]
[405098409,1770805831893,-403.08157141,0.0002851,2]
[405098411,1770805831902,-500.0,0.0002851,2]
[405098413,1770805831912,-500.0,0.0002851,2]
[405098415,1770805831921,-500.0,0.0002851,2]
[405098417,1770805831931,-500.0,0.0002851,2]
[405098419,1770805831941,-500.0,0.0002851,2]
[405098421,1770805831950,-500.0,0.0002851,2]
[405098423,1770805831959,-500.0,0.0002851,2]
[405098425,1770805831969,-500.0,0.0002851,2]
[405098427,1770805831978,-500.0,0.0002851,2]
[405098429,1770805831988,-500.0,0.0002851,2]
[405098431,1770805831997,-500.0,0.0002851,2]
[405098434,1770805832008,-22.76394589,0.0002851,2]
[405098478,1770805837919,-477.23605411,0.0002851,2]
[405098479,1770805837929,-500.0,0.0002851,2]
[405098480,1770805837939,-500.0,0.0002851,2]
[405098481,1770805837950,-500.0,0.0002851,2]
[405098482,1770805837960,-181.42653685,0.0002851,2]
[405098483,1770805837969,-2350.37108349,0.00028512,2]
[405098484,1770805837979,-963.34875636,0.00029704,2]
[405098485,1770805837990,-2246.05661404,0.00029704,2]
[405098486,1770805838000,-2046.8027322,0.0003,2]
[405098487,1770805838010,-231.0,0.00030284,2]
[405098488,1770805838024,-3112.84897388,0.00030419,2]
[405098489,1770805838034,-155.58405933,0.00030672,2]
[405098490,1770805838044,-516.12663537,0.00030672,2]
[405098509,1770805840034,-5320.96573661,0.00030672,2]
[405098516,1770805840091,-3e-08,0.00030672,2]
[405098622,1770805844388,-1863.18575929,0.00030672,2]
[405098623,1770805844782,272.75745173,0.00024953,2]
[405098624,1770805844802,227.24254827,0.00024953,2]
[405098625,1770805845268,-110.34554631,0.00030672,2]
[405098626,1770805845281,-2577.96849664,0.00030672,2]
[405098663,1770805845977,-5883.92594504,0.00030672,2]
[405098664,1770805845987,-420.0,0.00030774,2]
[405098665,1770805845996,-1680.0,0.00030907,2]
[405098666,1770805846007,-2625.88640806,0.00031199,2]
[405098672,1770805846142,-1130.63514448,0.00031199,2]
[405098674,1770805846151,-303.599054,0.00031299,2]
[405098675,1770805846160,-151.0,0.00031635,7]
[405098676,1770805846170,-151.0,0.00031635,7]
[405098677,1770805846179,-200.0,0.00032,120]
[405098679,1770805846188,-258.0,0.00032284,2]
[405098681,1770805846197,-3875.32686426,0.00032325,2]
[405098683,1770805846206,-523.91302111,0.00032533,7]
[405098685,1770805846215,-151.0,0.00032533,7]
[405098687,1770805846223,-151.0,0.00032533,7]
[405098688,1770805846233,-167.0,0.00033,14]
[405098689,1770805846242,-150.133466,0.00033154,2]
[405098690,1770805846252,-587.0,0.00033218,2]
[405098691,1770805846333,-273.89229625,0.0003362,2]